bitfinex/quotes_BTCUSD_20240901
["timestamp","ask_amount","ask_price","bid_price","bid_amount"]
[1725227106424,1.48654306,58431.0,58430.0,0.014]
[1725227106930,1.82882706,58431.0,58430.0,0.014]
[1725227107170,2.58343104,58431.0,58430.0,0.014]
[1725227107379,2.54222504,58431.0,58430.0,0.014]
[1725227107590,2.467033,58431.0,58430.0,0.014]
[1725227107799,2.59485297,58431.0,58430.0,0.014]
[1725227108017,2.59485297,58431.0,58430.0,0.007]
[1725227108234,2.467033,58431.0,58430.0,0.008]
[1725227108439,2.56914896,58431.0,58430.0,0.008]
[1725227108654,2.56914896,58431.0,58430.0,0.001]
[1725227109079,2.56914896,58431.0,58430.0,0.002]
[1725227109290,2.467033,58431.0,58430.0,0.002]
[1725227109507,2.465033,58431.0,58430.0,0.002]
[1725227110154,2.56909504,58431.0,58430.0,0.002]
[1725227110429,2.54355041,58431.0,58430.0,0.001]
[1725227110651,2.028122,58429.0,58428.0,0.0008987]
[1725227110887,2.62157208,58429.0,58428.0,0.0008987]
[1725227111147,2.58515208,58429.0,58428.0,0.0008987]
[1725227111379,2.63614459,58429.0,58428.0,0.0008987]
[1725227111781,2.58515208,58429.0,58428.0,0.0008987]
[1725227112186,2.59827792,58429.0,58428.0,0.0008987]
[1725227112390,2.50768808,58429.0,58428.0,0.0008987]
[1725227112615,2.56268292,58429.0,58428.0,0.0018987]
[1725227112820,2.51168808,58429.0,58428.0,0.0028987]
[1725227117714,2.53855591,58429.0,58428.0,0.0028987]
[1725227120791,2.70710743,58429.0,58428.0,0.0028987]
[1725227121003,3.04940243,58429.0,58428.0,0.0028987]
[1725227121210,3.06440243,58429.0,58428.0,7e-07]
[1725227121429,2.77332717,58429.0,58428.0,7e-07]
[1725227123299,2.72242543,58429.0,58428.0,0.0008994]
[1725227123713,4.98152543,58429.0,58428.0,0.0008994]
[1725227123927,4.63982679,58429.0,58428.0,0.0008994]
[1725227124165,4.63982679,58429.0,58410.0,0.0628]
[1725227124166,1.369604,58411.0,58410.0,0.002]
[1725227124372,1.540804,58411.0,58410.0,0.002]
[1725227124594,1.640804,58411.0,58410.0,0.002]
[1725227124815,1.67183611,58411.0,58410.0,0.002]
[1725227125234,1.67283611,58411.0,58410.0,0.009]
[1725227125502,1.67283611,58411.0,58410.0,0.016]
[1725227127251,1.67283611,58411.0,58410.0,0.014]
[1725227128742,1.67283611,58411.0,58410.0,0.007]
[1725227128923,1.540831,58410.0,58409.0,0.0008998]
[1725227129151,1.65392574,58410.0,58409.0,0.0008998]
[1725227130155,1.65392574,58410.0,58409.0,0.0028998]
[1725227131022,1.640831,58410.0,58409.0,0.0028998]
[1725227131231,1.6539255,58410.0,58409.0,0.0028998]
[1725227131468,1.640831,58410.0,58409.0,0.0028998]
[1725227131661,1.65392554,58410.0,58409.0,0.0058998]
[1725227132115,1.65392554,58410.0,58409.0,0.0028998]
[1725227132543,1.65792554,58410.0,58409.0,0.0028998]
[1725227132953,1.65792554,58410.0,58409.0,0.0008998]
[1725227133392,1.66192554,58410.0,58409.0,0.0008998]
[1725227134309,1.648831,58410.0,58409.0,0.0008998]
[1725227134519,1.66192549,58410.0,58409.0,0.0008998]
[1725227134729,1.65792549,58410.0,58409.0,0.0008998]
[1725227135155,1.65992549,58410.0,58409.0,0.0018998]
[1725227135364,1.66592549,58410.0,58409.0,0.0028998]
[1725227137537,1.652831,58410.0,58409.0,0.0028998]
[1725227137793,1.6659272,58410.0,58409.0,0.0028998]
[1725227143241,1.69279935,58410.0,58409.0,0.0028998]
[1725227144245,1.6659272,58410.0,58409.0,0.0028998]
[1725227147427,1.6889272,58410.0,58409.0,0.0028998]
[1725227147635,1.70270329,58410.0,58409.0,0.0028998]
[1725227147847,1.71579914,58410.0,58409.0,0.0028998]
[1725227148829,2.08436714,58410.0,58409.0,0.0028998]
[1725227149034,1.94442614,58410.0,58409.0,0.0028998]
[1725227149641,1.87812614,58410.0,58409.0,0.0028998]
[1725227150455,1.94442614,58410.0,58409.0,0.0028998]
[1725227150659,2.36833314,58410.0,58409.0,0.0028998]
[1725227150892,2.36986395,58410.0,58409.0,0.0028998]
[1725227152349,2.42071068,58410.0,58409.0,0.0028998]
[1725227152563,2.41471068,58410.0,58409.0,0.0018998]
[1725227152983,2.42471068,58410.0,58409.0,0.0028998]
[1725227153815,2.41871068,58410.0,58409.0,0.0018998]
[1725227154020,2.42771068,58410.0,58409.0,0.0018998]
[1725227154242,2.34999047,58410.0,58409.0,0.0018998]
[1725227154655,2.51854211,58410.0,58409.0,0.0018998]
[1725227155066,2.69934211,58410.0,58409.0,0.0018998]
[1725227155277,2.50954211,58410.0,58409.0,0.0018998]
[1725227155505,2.34099047,58410.0,58409.0,0.0018998]
[1725227155721,2.34399047,58410.0,58409.0,0.0008998]
[1725227155973,2.35799047,58410.0,58409.0,0.0008998]
[1725227157520,2.38486556,58410.0,58409.0,0.0008998]
[1725227158140,4.70451856,58410.0,58409.0,0.0008998]
[1725227158539,4.69151856,58410.0,58409.0,0.0008998]
[1725227158748,4.8740702,58410.0,58409.0,0.0008998]
[1725227158957,4.7443702,58410.0,58409.0,0.0008998]
[1725227159171,4.7583702,58410.0,58409.0,0.0008998]
[1725227160280,4.7715833,58410.0,58409.0,0.0008998]
[1725227160750,4.589937,58410.0,58409.0,0.0008998]
[1725227160961,4.6030338,58410.0,58409.0,0.0008998]
[1725227161214,4.60303376,58410.0,58409.0,0.0008998]
[1725227161445,4.52676366,58410.0,58409.0,0.0008998]
[1725227163190,4.52676352,58410.0,58409.0,0.0008998]
[1725227163409,4.62845699,58410.0,58409.0,0.0008998]
[1725227163611,4.62887185,58410.0,58409.0,0.0008998]
[1725227164091,4.61487185,58410.0,58409.0,0.0008998]
[1725227164297,4.58799676,58410.0,58409.0,0.0008998]
[1725227164506,4.60199676,58410.0,58409.0,0.0008998]
[1725227164963,4.57399676,58410.0,58409.0,0.0008998]
[1725227165167,4.60199676,58410.0,58409.0,0.0008998]
[1725227165376,4.58799676,58410.0,58409.0,0.0008998]
[1725227166226,4.30158881,58410.0,58409.0,0.0008998]
[1725227166434,4.36131976,58410.0,58409.0,0.0008998]
[1725227167477,4.53252276,58410.0,58409.0,0.0008998]
[1725227167686,4.57339777,58410.0,58409.0,0.0008998]
[1725227168086,4.54539777,58410.0,58409.0,0.0008998]
[1725227168289,4.55939777,58410.0,58409.0,0.0008998]
[1725227168535,2.30011988,58410.0,58409.0,0.0008998]
[1725227168726,4.88584088,58410.0,58409.0,0.0008998]
[1725227169276,4.77560788,58410.0,58409.0,0.0008998]
[1725227169473,4.76251374,58410.0,58409.0,0.0008998]
[1725227169904,4.94415963,58410.0,58409.0,0.0008998]
[1725227170143,4.85448346,58410.0,58409.0,0.0008998]
[1725227170523,4.86757759,58410.0,58409.0,0.0008998]
[1725227171519,4.60186295,58410.0,58409.0,0.0008998]
[1725227172331,4.60686295,58410.0,58409.0,0.0008998]
[1725227174243,4.57998794,58410.0,58409.0,0.0008998]
[1725227174853,4.57879752,58410.0,58409.0,0.0008998]
[1725227176101,4.70643294,58410.0,58409.0,0.0008998]
[1725227176552,4.70643274,58410.0,58409.0,0.0008998]
[1725227177415,4.70143274,58410.0,58409.0,0.0008998]
[1725227177644,4.70643274,58410.0,58409.0,0.0008998]
[1725227177852,4.70647462,58410.0,58409.0,0.0008998]
[1725227178938,4.90190162,58410.0,58409.0,0.0008998]
[1725227179140,4.73334998,58410.0,58409.0,0.0008998]
[1725227179781,4.72025605,58410.0,58409.0,0.0008998]
[1725227180207,4.73334854,58410.0,58409.0,0.0008998]
[1725227180423,4.73334853,58410.0,58409.0,0.0008998]
[1725227181226,4.60567123,58410.0,58409.0,0.0008998]
[1725227182938,4.61067123,58410.0,58409.0,0.0008998]
[1725227183143,4.77922287,58410.0,58409.0,0.0008998]
[1725227183391,4.78422429,58410.0,58409.0,0.0008998]
[1725227183527,4.61567265,58410.0,58409.0,0.0008998]
[1725227183741,4.61567249,58410.0,58409.0,0.0008998]
[1725227184003,4.76888525,58410.0,58409.0,0.0008998]
[1725227184229,4.74200989,58410.0,58409.0,0.0008998]
[1725227184432,4.58879713,58410.0,58409.0,0.0008998]
[1725227184559,4.75734877,58410.0,58409.0,0.0008998]
[1725227184768,2.37902377,58410.0,58409.0,0.0008998]
[1725227184962,6.07993753,58410.0,58409.0,0.0008998]
[1725227185374,5.91138589,58410.0,58409.0,0.0008998]
[1725227186634,5.91139104,58410.0,58409.0,0.0008998]
[1725227186821,5.12493104,58410.0,58409.0,0.0008998]
[1725227187433,4.99859463,58410.0,58409.0,0.0008998]
[1725227189811,4.98549574,58410.0,58409.0,0.0008998]
[1725227190023,4.95735995,58410.0,58409.0,0.0008998]
[1725227190228,5.11060572,58410.0,58409.0,0.0008998]
[1725227190434,4.95735995,58410.0,58409.0,0.0008998]
[1725227190843,4.72702695,58410.0,58409.0,0.0008998]
[1725227191468,4.88027272,58410.0,58409.0,0.0008998]
[1725227191675,4.72702695,58410.0,58409.0,0.0008998]
[1725227192222,4.72784495,58410.0,58409.0,0.0008998]
[1725227192622,4.88109072,58410.0,58409.0,0.0008998]
[1725227193258,4.7278449,58410.0,58409.0,0.0008998]
[1725227193462,4.88111374,58410.0,58409.0,0.0008998]
[1725227194152,4.85423739,58410.0,58409.0,0.0008998]
[1725227196927,4.55316855,58410.0,58409.0,0.0008998]
[1725227197556,5.61119655,58410.0,58409.0,0.0008998]
[1725227198962,4.56015571,58410.0,58409.0,0.0008998]
[1725227199168,4.71348067,58410.0,58409.0,0.0008998]
[1725227200208,4.56015571,58410.0,58409.0,0.0008998]
[1725227201289,4.56134613,58410.0,58409.0,0.0008998]
[1725227202027,4.54734613,58410.0,58409.0,0.0008998]
[1725227202233,4.56134613,58410.0,58409.0,0.0008998]
[1725227202664,4.54734613,58410.0,58409.0,0.0008998]
[1725227202869,4.53334613,58410.0,58409.0,0.0008998]
[1725227203099,4.54734613,58410.0,58409.0,0.0008998]
[1725227203334,4.5613501,58410.0,58409.0,0.0008998]
[1725227203785,4.5473501,58410.0,58409.0,0.0008998]
[1725227204195,4.52047413,58410.0,58409.0,0.0008998]
[1725227205152,4.53447413,58410.0,58409.0,0.0008998]
[1725227205680,4.52047413,58410.0,58409.0,0.0008998]
[1725227205804,4.53447413,58410.0,58409.0,0.0008998]
[1725227207701,4.56134931,58410.0,58409.0,0.0008998]
[1725227208073,5.63773531,58410.0,58409.0,0.0008998]
[1725227209400,5.62373531,58410.0,58409.0,0.0008998]
[1725227209581,4.14223231,58410.0,58409.0,0.0008998]
[1725227209803,4.11512918,58410.0,58409.0,0.0008998]
[1725227210026,4.14312918,58410.0,58409.0,0.0008998]
[1725227210246,4.15623287,58410.0,58409.0,0.0008998]
[1725227210661,4.17023287,58410.0,58409.0,0.0008998]
[1725227211347,4.15623287,58410.0,58409.0,0.0008998]
[1725227211561,4.17023287,58410.0,58409.0,0.0008998]
[1725227213357,4.17023612,58410.0,58409.0,0.0008998]
[1725227214256,4.14336094,58410.0,58409.0,0.0008998]
[1725227216519,4.125254,58410.0,58409.0,0.1434998]
[1725227216735,4.1333599,58410.0,58409.0,0.1434998]
[1725227217684,4.16023483,58410.0,58409.0,0.1434998]
[1725227218764,5.64173783,58410.0,58409.0,0.1434998]
[1725227219210,5.62239383,58410.0,58409.0,0.1434998]
[1725227219853,5.58207883,58410.0,58409.0,0.1434998]
[1725227220277,5.56897293,58410.0,58409.0,0.1434998]
[1725227220484,5.56471701,58410.0,58409.0,0.1434998]
[1725227222058,5.56471632,58410.0,58409.0,0.1434998]
[1725227222293,5.55161193,58410.0,58409.0,0.1434998]
[1725227222515,5.5647163,58410.0,58409.0,0.1434998]
[1725227222954,5.5747163,58410.0,58409.0,0.1434998]
[1725227223578,4.8569103,58410.0,58409.0,0.1434998]
[1725227223784,4.98979404,58410.0,58409.0,0.1434998]
[1725227223993,4.8669103,58410.0,58409.0,0.1434998]
[1725227224424,4.84003537,58410.0,58409.0,0.1434998]
[1725227224841,4.9679224,58410.0,58409.0,0.1434998]
[1725227225675,4.95481803,58410.0,58409.0,0.1434998]
[1725227225892,4.96792195,58410.0,58409.0,0.1434998]
[1725227226525,4.95792195,58410.0,58409.0,0.1434998]
[1725227226701,4.84003492,58410.0,58409.0,0.1434998]
[1725227226908,4.95792195,58410.0,58409.0,0.1434998]
[1725227227191,4.17397295,58410.0,58409.0,0.1434998]
[1725227227594,4.07296044,58410.0,58409.0,0.1434998]
[1725227228872,3.56811352,58410.0,58409.0,0.1434998]
[1725227229134,3.71910379,58410.0,58409.0,0.1434998]
[1725227231005,3.70910379,58410.0,58409.0,0.1434998]
[1725227231245,3.58121676,58410.0,58409.0,0.1434998]
[1725227232605,3.57621676,58410.0,58409.0,0.1434998]
[1725227233248,3.23380976,58410.0,58409.0,0.1434998]
[1725227234322,3.20693524,58410.0,58409.0,0.1434998]
[1725227237553,3.23380928,58410.0,58409.0,0.1434998]
[1725227239388,3.23380928,58410.0,58396.0,0.0008987]
[1725227239389,2.02395528,58410.0,58396.0,0.0008987]
[1725227239647,0.856207,58397.0,58396.0,0.0776987]
[1725227239911,0.96931024,58397.0,58396.0,0.0776987]
[1725227240430,1.01412327,58397.0,58396.0,0.0776987]
[1725227241775,1.02212327,58397.0,58396.0,0.0776987]
[1725227242408,1.02212327,58397.0,58396.0,0.1424987]
[1725227242915,1.02912327,58397.0,58396.0,0.1424987]
[1725227244394,1.00224761,58397.0,58396.0,0.1424987]
[1725227245505,0.98914437,58397.0,58396.0,0.1424987]
[1725227245721,1.00225475,58397.0,58396.0,0.1424987]
[1725227247633,1.02913089,58397.0,58396.0,0.1424987]
[1725227249193,1.02213026,58397.0,58396.0,0.1424987]
[1725227249414,1.01413026,58397.0,58396.0,0.1424987]
[1725227249617,1.03113026,58397.0,58396.0,0.1424987]
[1725227252461,1.01802051,58397.0,58396.0,0.1424987]
[1725227252678,1.03113028,58397.0,58396.0,0.1424987]
[1725227254261,1.00425414,58397.0,58396.0,0.1424987]
[1725227256084,1.0042544,58397.0,58396.0,0.1424987]
[1725227257647,0.78006413,58397.0,58396.0,0.1424987]
[1725227257874,0.95130513,58397.0,58396.0,0.1424987]
[1725227258823,0.97818041,58397.0,58396.0,0.1424987]
[1725227259931,0.96507038,58397.0,58396.0,0.1424987]
[1725227260155,0.97818615,58397.0,58396.0,0.1424987]
[1725227261923,0.63570315,58397.0,58396.0,0.1424987]
[1725227263094,0.17492745,58397.0,58396.0,0.1424987]
[1725227263330,0.14805217,58397.0,58396.0,0.1424987]
[1725227263550,0.14805217,58397.0,58396.0,0.20757036]
[1725227266630,0.17492658,58397.0,58396.0,0.20757036]
[1725227270323,0.16181223,58397.0,58396.0,0.20757036]
[1725227270550,0.17492499,58397.0,58396.0,0.20757036]
[1725227270778,0.16181223,58397.0,58396.0,0.20757036]
[1725227270996,0.17492441,58397.0,58396.0,0.20757036]
[1725227273010,0.17574241,58397.0,58396.0,0.20757036]
[1725227274091,0.14886755,58397.0,58396.0,0.20757036]
[1725227274544,0.342471,58400.0,58397.0,0.0656]
[1725227274747,0.28434762,58399.0,58398.0,0.06506262]
[1725227274955,0.28434762,58399.0,58398.0,0.12996262]
[1725227275768,0.34987622,58400.0,58398.0,0.12996262]
[1725227276198,0.011,58399.0,58398.0,0.12996262]
[1725227276427,0.193235,58399.0,58398.0,0.12996262]
[1725227276882,0.182235,58399.0,58398.0,0.12996262]
[1725227277540,0.20910947,58399.0,58398.0,0.12996262]
[1725227278083,0.30910947,58399.0,58398.0,0.12996262]
[1725227278171,0.30910947,58399.0,58398.0,0.13096262]
[1725227278563,0.30910947,58399.0,58398.0,0.12996262]
[1725227278782,0.30910947,58399.0,58398.0,0.20776262]
[1725227278936,0.14687447,58399.0,58398.0,0.20876262]
[1725227279135,0.31810947,58399.0,58398.0,0.20876262]
[1725227279963,0.31810947,58399.0,58398.0,0.21076262]
[1725227280185,0.342467,58400.0,58398.0,0.21076262]
[1725227280418,0.1,58399.0,58398.0,0.21076262]
[1725227280845,0.271235,58399.0,58398.0,0.21076262]
[1725227281064,0.271235,58399.0,58398.0,0.20976262]
[1725227281266,0.1,58399.0,58398.0,0.21076262]
[1725227281912,0.1,58399.0,58398.0,0.20976262]
[1725227282142,0.11,58399.0,58398.0,0.21076262]
[1725227282368,0.11,58399.0,58398.0,0.21176262]
[1725227282590,0.11,58399.0,58398.0,0.21076262]
[1725227283072,0.119,58399.0,58398.0,0.21176262]
[1725227285130,0.119,58399.0,58398.0,0.38300062]
[1725227285586,0.119818,58399.0,58398.0,0.38300062]
[1725227286225,0.119818,58399.0,58398.0,0.72547762]
[1725227286435,0.010818,58399.0,58398.0,0.72447762]
[1725227286653,0.010818,58399.0,58398.0,0.72347762]
[1725227286830,0.010818,58399.0,58398.0,0.72247762]
[1725227287048,0.000818,58399.0,58398.0,0.72247762]
[1725227287478,0.000818,58399.0,58398.0,0.72447762]
[1725227288800,0.000818,58399.0,58398.0,1.06695462]
[1725227290006,0.02768859,58399.0,58398.0,1.06695462]
[1725227294287,0.000818,58399.0,58398.0,1.06695462]
[1725227295549,0.000818,58399.0,58398.0,1.40943162]
[1725227297881,0.000818,58399.0,58398.0,1.41033142]
[1725227298776,0.02768792,58399.0,58398.0,1.41033142]
[1725227304238,0.000818,58399.0,58398.0,1.41033142]
[1725227305501,0.000818,58399.0,58398.0,1.40833142]
[1725227305717,0.000818,58399.0,58398.0,1.41033142]
[1725227305942,0.000818,58399.0,58398.0,1.41533142]
[1725227307027,0.000818,58399.0,58398.0,1.41433142]
[1725227307240,0.000818,58399.0,58398.0,1.40933142]
[1725227307451,0.001818,58399.0,58398.0,1.42233142]
[1725227307659,0.0286869,58399.0,58398.0,1.42233142]
[1725227309439,0.0296869,58399.0,58398.0,1.43333142]
[1725227310991,0.22237622,58411.0,58406.0,0.171212]
[1725227311212,0.22237622,58411.0,58403.0,0.0641]
[1725227311213,0.56477722,58411.0,58410.0,0.002]
[1725227311654,0.513602,58411.0,58410.0,0.002]
[1725227312276,0.515602,58411.0,58410.0,0.002]
[1725227312757,0.516602,58411.0,58410.0,0.002]
[1725227313189,0.616602,58411.0,58410.0,0.0661]
[1725227313659,0.614602,58411.0,58410.0,0.13189455]
[1725227313863,0.614602,58411.0,58410.0,0.06779455]
[1725227314075,0.616602,58411.0,58410.0,0.06779455]
[1725227314512,0.616602,58411.0,58410.0,0.13439455]
[1725227314750,0.616602,58411.0,58410.0,0.21529455]
[1725227314751,0.003,58411.0,58410.0,0.21529455]
[1725227314983,0.103,58411.0,58410.0,0.21529455]
[1725227315406,0.103,58411.0,58410.0,0.38649755]
[1725227315610,0.003,58411.0,58410.0,0.38649755]
[1725227315825,0.103,58411.0,58410.0,0.38649755]
[1725227316249,0.103,58411.0,58410.0,0.72890455]
[1725227317363,0.103,58411.0,58410.0,0.64800455]
[1725227318439,0.003,58411.0,58410.0,0.64800455]
[1725227320221,0.02986677,58411.0,58410.0,0.64800455]
[1725227322589,0.02986677,58411.0,58410.0,0.64890435]
[1725227322818,0.03068477,58411.0,58410.0,0.64890435]
[1725227324182,0.003818,58411.0,58410.0,0.64890435]
[1725227324386,0.477152,58420.0,58412.0,0.002]
[1725227324602,0.171188,58416.0,58412.0,0.002]
[1725227324827,0.171189,58415.0,58414.0,0.002]
[1725227325026,0.51355,58417.0,58416.0,0.002]
[1725227325479,0.51355,58417.0,58416.0,0.06776746]
[1725227325703,0.51355,58417.0,58416.0,0.002]
[1725227325933,0.51355,58417.0,58416.0,0.12856746]
[1725227326146,0.186184,58417.0,58416.0,0.0628]
[1725227326352,0.186184,58417.0,58416.0,0.12856746]
[1725227326557,0.278184,58417.0,58416.0,0.0628]
[1725227326776,0.279184,58417.0,58416.0,0.12956746]
[1725227326984,0.286184,58417.0,58416.0,0.0648]
[1725227327185,0.286184,58417.0,58416.0,0.06976746]
[1725227327319,0.286184,58417.0,58416.0,0.004]
[1725227327547,0.3130501,58417.0,58416.0,0.004]
[1725227327767,0.3130501,58417.0,58416.0,0.06976746]
[1725227328739,0.0418661,58417.0,58416.0,0.06976746]
[1725227329177,0.2130501,58417.0,58416.0,0.06976746]
[1725227330802,0.3130501,58417.0,58416.0,0.06976746]
[1725227332087,0.3130501,58417.0,58416.0,0.06776746]
[1725227332492,0.3130501,58417.0,58416.0,0.002]
[1725227332722,0.3130501,58417.0,58416.0,0.06776746]
[1725227334937,0.31186066,58417.0,58416.0,0.06776746]
[1725227335185,0.65422666,58417.0,58416.0,0.06866726]
[1725227335647,0.65422666,58417.0,58416.0,0.0028998]
[1725227335648,0.65504466,58417.0,58416.0,0.0028998]
[1725227335829,0.99741066,58417.0,58416.0,0.0028998]
[1725227337234,0.97054456,58417.0,58416.0,0.0028998]
[1725227338385,1.02794456,58417.0,58416.0,0.0028998]
[1725227341940,1.0548128,58417.0,58416.0,0.0028998]
[1725227344154,1.02794456,58417.0,58416.0,0.0028998]
[1725227345110,1.49045556,58417.0,58416.0,0.0028998]
[1725227345762,1.37031056,58417.0,58416.0,0.0028998]
[1725227345987,1.55010756,58417.0,58416.0,0.0028998]
[1725227346624,1.53980556,58417.0,58416.0,0.0028998]
[1725227347093,1.61970556,58417.0,58416.0,0.0028998]
[1725227348616,1.64657477,58417.0,58416.0,0.0028998]
[1725227354124,1.61970556,58417.0,58416.0,0.0028998]
[1725227357550,1.64657447,58417.0,58416.0,0.0028998]
[1725227357982,1.47707947,58417.0,58416.0,0.0028998]
[1725227358218,1.67949047,58417.0,58416.0,0.0028998]
[1725227359598,1.52198047,58417.0,58416.0,0.0028998]
[1725227360227,1.48233047,58417.0,58416.0,0.0028998]
[1725227363414,1.61653047,58417.0,58416.0,0.0028998]
[1725227363663,1.62247647,58417.0,58416.0,0.0028998]
[1725227364293,1.59560756,58417.0,58416.0,0.0028998]
[1725227364755,1.46140756,58417.0,58416.0,0.0028998]
[1725227365892,1.31291056,58417.0,58416.0,0.0028998]
[1725227367617,1.33977903,58417.0,58416.0,0.0028998]
[1725227373722,1.33977903,58417.0,58416.0,0.1449998]
[1725227374407,1.31291056,58417.0,58416.0,0.1449998]
[1725227376389,1.31291056,58417.0,58416.0,0.0643998]
[1725227377788,1.33977794,58417.0,58416.0,0.0643998]
[1725227380015,0.99741194,58417.0,58416.0,0.0643998]
[1725227380939,0.99741194,58417.0,58416.0,0.1425998]
[1725227392824,0.31267994,58417.0,58416.0,0.1425998]
[1725227393342,0.31267994,58417.0,58416.0,0.21036726]
[1725227396280,0.65504594,58417.0,58416.0,0.21036726]
[1725227396709,0.65504594,58417.0,58416.0,0.20836726]
[1725227396929,0.99741194,58417.0,58416.0,0.13016726]
[1725227397358,0.99741194,58417.0,58416.0,0.06866726]
[1725227397577,0.99741194,58417.0,58416.0,0.0048998]
[1725227397789,0.99741194,58417.0,58416.0,0.0028998]
[1725227399546,0.99741194,58417.0,58416.0,0.0630998]
[1725227399768,0.99741194,58417.0,58416.0,0.0650998]
[1725227400893,0.65504594,58417.0,58416.0,0.1446998]
[1725227401322,0.65504594,58417.0,58416.0,0.13115408]
[1725227401548,0.65504594,58417.0,58416.0,0.0650998]
[1725227401994,0.65504594,58417.0,58416.0,0.13115408]
[1725227402218,0.31267994,58417.0,58416.0,0.13115408]
[1725227402446,0.04149594,58417.0,58416.0,0.21195408]
[1725227402675,0.21267894,58417.0,58416.0,0.21195408]
[1725227404437,0.21267894,58417.0,58416.0,0.12915408]
[1725227404438,0.55504494,58417.0,58416.0,0.12915408]
[1725227404892,0.21267894,58417.0,58416.0,0.12915408]
[1725227405565,0.04149594,58417.0,58416.0,0.21355408]
[1725227405793,0.21267894,58417.0,58416.0,0.21155408]
[1725227406072,0.04149594,58417.0,58416.0,0.21155408]
[1725227406302,0.342352,58420.0,58416.0,0.21155408]
[1725227406303,0.342354,58419.0,58417.0,0.1397]
[1725227406523,0.17118,58418.0,58417.0,0.1397]
[1725227406739,0.17118,58418.0,58417.0,0.1377]
[1725227406951,0.17118,58418.0,58417.0,0.1357]
[1725227407916,0.175177,58419.0,58418.0,0.0682]
[1725227408830,0.171177,58419.0,58418.0,0.0682]
[1725227409759,0.19804166,58419.0,58418.0,0.0682]
[1725227410205,0.02686466,58419.0,58418.0,0.1474]
[1725227411107,0.02686466,58419.0,58418.0,0.31858]
[1725227411336,0.02686466,58419.0,58418.0,0.66094]
[1725227412953,0.02686466,58419.0,58418.0,0.65894]
[1725227413191,0.02686466,58419.0,58418.0,1.0033]
[1725227414376,0.100817,58429.0,58427.0,0.002]
[1725227414588,0.100817,58429.0,58427.0,0.316953]
[1725227414589,0.12767938,58429.0,58427.0,0.316953]
[1725227414818,0.02767938,58429.0,58427.0,0.316953]
[1725227415791,0.02767938,58429.0,58427.0,0.38295763]
[1725227416206,0.02767938,58429.0,58427.0,0.38695763]
[1725227416646,0.02767938,58429.0,58427.0,0.39195763]
[1725227417487,0.271133,58434.0,58427.0,0.39195763]
[1725227417488,0.02611507,58435.0,58433.0,0.002]
[1725227417700,0.171134,58434.0,58433.0,0.002]
[1725227419464,0.271134,58434.0,58433.0,0.002]
[1725227420359,0.271134,58434.0,58433.0,0.0635]
[1725227420579,0.271134,58434.0,58433.0,0.1421]
[1725227420810,0.271133,58434.0,58433.0,0.1441]
[1725227421048,0.266133,58434.0,58433.0,0.1441]
[1725227422215,0.095,58434.0,58433.0,0.1441]
[1725227422446,0.095,58434.0,58433.0,0.1451]
[1725227422674,0.00818,58435.0,58434.0,0.002]
[1725227423154,0.10818,58435.0,58434.0,0.002]
[1725227423381,0.00818,58435.0,58434.0,0.0635]
[1725227423832,0.00818,58435.0,58434.0,0.0645]
[1725227424533,0.00818,58435.0,58434.0,0.235633]
[1725227426546,0.00818,58435.0,58434.0,0.314633]
[1725227426769,0.03503735,58435.0,58434.0,0.314633]
[1725227427684,0.03503735,58435.0,58434.0,0.1435]
[1725227428898,0.171122,58438.0,58436.0,0.002]
[1725227429150,0.0004,58439.0,58437.0,0.0611]
[1725227429394,0.0004,58439.0,58438.0,0.1405]
[1725227430270,0.0004,58439.0,58438.0,0.313621]
[1725227430718,0.0004,58439.0,58438.0,0.65928603]
[1725227430720,0.0004,58439.0,58438.0,0.72565211]
[1725227430937,0.0004,58439.0,58438.0,0.37998708]
[1725227431635,0.0004,58439.0,58438.0,0.33675856]
[1725227432330,0.0272539,58439.0,58438.0,0.34375856]
[1725227433005,0.0272539,58439.0,58438.0,0.35075856]
[1725227433938,0.342195,58447.0,58438.0,0.35075856]
[1725227434052,0.1,58446.0,58438.0,0.35075856]
[1725227434284,0.17111,58442.0,58438.0,0.35075856]
[1725227434504,0.17111,58442.0,58441.0,0.002]
[1725227434717,0.17111,58442.0,58441.0,0.02515464]
[1725227436655,0.17111,58442.0,58441.0,0.02815464]
[1725227438450,0.17111,58442.0,58441.0,0.03215464]
[1725227439137,0.342203,58445.0,58441.0,0.03215464]
[1725227439138,0.171105,58444.0,58441.0,0.03215464]
[1725227439376,0.271107,58443.0,58441.0,0.03215464]
[1725227439591,0.271107,58443.0,58442.0,0.065]
[1725227439834,0.271107,58443.0,58441.0,0.03015464]
[1725227439835,0.171109,58442.0,58441.0,0.02715464]
[1725227440071,0.171112,58441.0,58440.0,0.002]
[1725227442650,0.36579101,58443.0,58442.0,0.002]
[1725227443318,0.51004392,58443.0,58442.0,0.002]
[1725227443984,0.51004392,58443.0,58442.0,0.004]
[1725227445517,0.51004392,58443.0,58442.0,0.007]
[1725227445744,0.61004392,58443.0,58442.0,0.03015323]
[1725227446257,0.271106,58443.0,58442.0,0.03015323]
[1725227446485,0.29796041,58443.0,58442.0,0.03015323]
[1725227446702,0.29796041,58443.0,58442.0,0.09125323]
[1725227447765,0.12685441,58443.0,58442.0,0.09125323]
[1725227447972,0.02685441,58443.0,58442.0,0.09125323]
[1725227449421,0.271101,58445.0,58444.0,0.002]
[1725227449422,0.613303,58445.0,58444.0,0.002]
[1725227449634,0.271101,58445.0,58444.0,0.002]
[1725227449859,0.271101,58445.0,58444.0,0.02515041]
[1725227450066,0.271101,58445.0,58442.0,0.007]
[1725227450067,0.171104,58444.0,58442.0,0.007]
[1725227450284,0.1,58443.0,58442.0,0.002]
[1725227451318,0.1,58443.0,58442.0,0.003]
[1725227452140,0.171106,58443.0,58442.0,0.0641]
[1725227452353,0.271106,58443.0,58442.0,0.0641]
[1725227452560,0.271106,58443.0,58442.0,0.0631]
[1725227452764,0.271106,58443.0,58442.0,0.0661]
[1725227452765,0.29796041,58443.0,58442.0,0.0661]
[1725227452977,0.29796041,58443.0,58442.0,0.0681]
[1725227454447,0.29796041,58443.0,58442.0,0.0689987]
[1725227454648,0.29877741,58443.0,58442.0,0.0689987]
[1725227457268,0.271923,58443.0,58442.0,0.0689987]
[1725227458955,0.614136,58443.0,58442.0,0.0689987]
[1725227460311,0.614136,58443.0,58442.0,0.10043923]
[1725227460951,0.614136,58443.0,58442.0,0.0689987]
[1725227461162,0.614136,58443.0,58442.0,0.10043923]
[1725227467188,0.614136,58443.0,58442.0,0.18213923]
[1725227467637,0.614136,58443.0,58442.0,0.10043923]
[1725227469686,0.64099014,58443.0,58442.0,0.10043923]
[1725227471299,0.29877714,58443.0,58442.0,0.10043923]